fUSD/lending_fUSD_20260622
["ID","MTS","AMOUNT","RATE_DAILY","PERIOD"]
[426089090,1782141049000,-587.05083541,0.00028152,2]
[426089085,1782141049000,-632.50121859,0.00028152,2]
[426089093,1782141049000,-711.09912825,0.00028152,2]
[426089096,1782141049000,-598.04698884,0.00028152,2]
[426089095,1782141049000,-302.85250253,0.00028152,2]
[426089103,1782141049000,-816.67032619,0.00028186,2]
[426089098,1782141049000,-409.02126746,0.00028152,2]
[426089100,1782141049000,-480.65160539,0.00028186,2]
[426089101,1782141049000,-737.05872391,0.00028186,2]
[426089102,1782141049000,-643.66693253,0.00028186,2]
[426089097,1782141049000,-779.99692547,0.00028152,2]
[426089094,1782141049000,-610.58258781,0.00028152,2]
[426089099,1782141049000,-675.46398136,0.00028152,2]
[426089112,1782141049000,-1025.03,0.00028198,7]
[426089113,1782141049000,-815.98,0.00028199,7]
[426089111,1782141049000,-1024.7,0.00028198,7]
[426089106,1782141049000,-153.07171842,0.00028186,2]
[426089133,1782141049000,-784.14076901,0.00028236,2]
[426089154,1782141049000,-558.31262175,0.00028236,2]
[426089135,1782141049000,-710.02870978,0.00028236,2]
[426089168,1782141049000,-702.23135297,0.00028236,2]
[426089166,1782141049000,-600.55377134,0.00028236,2]
[426089170,1782141049000,-490.41726721,0.00028236,2]
[426089171,1782141049000,-188.73261753,0.00028236,2]
[426089167,1782141049000,-680.01155672,0.00028236,2]
[426089169,1782141049000,-664.80716865,0.00028236,2]
[426089173,1782141049000,-638.19092054,0.00028236,2]
[426089172,1782141049000,-166.24117655,0.00028236,2]
[426089174,1782141049000,-383.73358454,0.00028236,2]
[426089178,1782141049000,-301.14337869,0.00028254,2]
[426089175,1782141049000,-785.0,0.00028251,2]
[426089164,1782141049000,-200.31206096,0.00028236,2]
[426089180,1782141049000,-714.6,0.00028267,2]
[426089179,1782141049000,-292.09502455,0.00028254,2]
[426089177,1782141049000,-747.80937859,0.00028251,2]
[426089181,1782141049000,-709.11,0.00028268,2]
[426089183,1782141049000,-1388.69,0.00028359,2]
[426089184,1782141049000,-815.98,0.00028359,2]
[426089188,1782141049000,-25000.0,0.00028397,7]
[426089182,1782141049000,-1365.8,0.00028358,2]
[426089187,1782141049000,-25000.0,0.00028388,7]
[426089189,1782141049000,-171.2041203,0.00028397,7]
[426089186,1782141049000,-25000.0,0.00028379,7]
[426089134,1782141049000,-534.3592339,0.00028236,2]
[426089176,1782141049000,-644.79446245,0.00028251,2]
[426089161,1782141049000,-874.2033557,0.00028236,2]
[426089185,1782141049000,-783.3,0.0002836,2]
[426089163,1782141049000,-160.12493702,0.00028236,2]
[426089165,1782141049000,-630.98989214,0.00028236,2]
[426089136,1782141049000,-150.84822407,0.00028236,2]
[426089139,1782141049000,-709.27276211,0.00028236,2]
[426089140,1782141049000,-424.83765198,0.00028236,2]
[426089150,1782141049000,-155.22938009,0.00028236,2]
[426089149,1782141049000,-422.78001498,0.00028236,2]
[426089144,1782141049000,-658.74192382,0.00028236,2]
[426089148,1782141049000,-548.22851286,0.00028236,2]
[426089142,1782141049000,-762.47671844,0.00028236,2]
[426089143,1782141049000,-228.86671973,0.00028236,2]
[426089145,1782141049000,-322.30135977,0.00028236,2]
[426089146,1782141049000,-708.70243584,0.00028236,2]
[426089141,1782141049000,-341.0260912,0.00028236,2]
[426089152,1782141049000,-160.0,0.00028236,2]
[426089162,1782141049000,-377.84714451,0.00028236,2]
[426089147,1782141049000,-674.15915617,0.00028236,2]
[426089160,1782141049000,-162.69071168,0.00028236,2]
[426089155,1782141049000,-633.83434604,0.00028236,2]
[426089159,1782141049000,-468.63609308,0.00028236,2]
[426089156,1782141049000,-737.26772674,0.00028236,2]
[426089151,1782141049000,-190.86020306,0.00028236,2]
[426089158,1782141049000,-406.01689926,0.00028236,2]
[426089153,1782141049000,-729.83691332,0.00028236,2]
[426089190,1782141049000,-969.24,0.000284,7]
[426089157,1782141049000,-458.87827511,0.00028236,2]
[426089211,1782141050000,-194.200645,0.000286,7]
[426089212,1782141050000,-194.200645,0.000286,7]
[426089213,1782141050000,-151.0,0.000286,7]
[426089214,1782141050000,-169.261806,0.000286,7]
[426089216,1782141050000,-201.248029,0.000286,7]
[426089217,1782141050000,-201.248029,0.000286,7]
[426089215,1782141050000,-201.248029,0.000286,7]
[426089220,1782141050000,-1668.304004,0.000286,7]
[426089218,1782141050000,-201.248029,0.000286,7]
[426089219,1782141050000,-151.0,0.000286,7]
[426089222,1782141050000,-1668.304004,0.000286,7]
[426089224,1782141050000,-151.0,0.000286,7]
[426089223,1782141050000,-1668.304004,0.000286,7]
[426089226,1782141050000,-709.11,0.00028642,2]
[426089225,1782141050000,-1139.428651,0.000286,7]
[426089229,1782141050000,-501.0,0.0002866,10]
[426089221,1782141050000,-1668.304004,0.000286,7]
[426089210,1782141050000,-194.200645,0.000286,7]
[426089194,1782141050000,-800.0,0.000285,2]
[426089208,1782141050000,-199429.26,0.000286,2]
[426089227,1782141050000,-341.9831965,0.00028658,2]
[426089193,1782141050000,-202.4,0.00028493,2]
[426089191,1782141050000,-364.68,0.000284,7]
[426089192,1782141050000,-25000.0,0.00028405,7]
[426089206,1782141050000,-1151.68636863,0.000286,15]
[426089195,1782141050000,-800.0,0.000285,2]
[426089196,1782141050000,-800.0,0.000285,2]
[426089199,1782141050000,-1388.69,0.00028519,30]
[426089201,1782141050000,-815.98,0.00028519,30]
[426089197,1782141050000,-800.0,0.000285,2]
[426089198,1782141050000,-1389.91,0.00028519,30]
[426089205,1782141050000,-785.0,0.00028583,2]
[426089200,1782141050000,-1365.8,0.00028519,30]
[426089202,1782141050000,-783.3,0.0002852,30]
[426089203,1782141050000,-3052.553,0.00028547,20]
[426089204,1782141050000,-205.113,0.00028547,20]
[426089207,1782141050000,-199429.26,0.000286,2]
[426089209,1782141050000,-194.200645,0.000286,7]
[426089228,1782141050000,-170.99159825,0.00028658,2]
[426089237,1782141050000,-671.51279974,0.00028766,2]
[426089236,1782141050000,-350.0,0.00028753,4]
[426089253,1782141050000,-831.00896081,0.00028803,2]
[426089257,1782141050000,-350.0,0.0002886,12]
[426089256,1782141050000,-150.0,0.00028855,2]
[426089255,1782141050000,-420.0,0.00028823,5]
[426089258,1782141050000,-301.747,0.00028867,2]
[426089261,1782141050000,-159.0,0.00028888,30]
[426089260,1782141050000,-197.0,0.00028888,30]
[426089259,1782141050000,-227.0,0.00028888,30]
[426089263,1782141050000,-1288.0,0.00028888,30]
[426089265,1782141050000,-158.0,0.00028888,30]
[426089264,1782141050000,-156.0,0.00028888,30]
[426089266,1782141050000,-969.24,0.000289,7]
[426089267,1782141050000,-199429.26,0.000289,2]
[426089269,1782141050000,-200.0,0.000289,2]
[426089268,1782141050000,-364.68,0.000289,7]
[426089270,1782141050000,-2000.0,0.000289,2]
[426089231,1782141050000,-833.20288344,0.00028718,2]
[426089254,1782141050000,-877.78919121,0.00028803,2]
[426089252,1782141050000,-921.58465842,0.00028803,2]
[426089262,1782141050000,-1170.0,0.00028888,30]
[426089249,1782141050000,-953.09589805,0.00028803,2]
[426089251,1782141050000,-792.29293255,0.00028803,2]
[426089233,1782141050000,-868.46835186,0.00028718,2]
[426089232,1782141050000,-790.62652323,0.00028718,2]
[426089230,1782141050000,-802.6782115,0.00028718,2]
[426089235,1782141050000,-781.46069463,0.00028753,2]
[426089239,1782141050000,-400.0,0.0002877,2]
[426089240,1782141050000,-300.0,0.0002877,2]
[426089242,1782141050000,-1026.81,0.000288,30]
[426089241,1782141050000,-558.41,0.000288,7]
[426089234,1782141050000,-804.58366566,0.00028753,2]
[426089243,1782141050000,-854.57028174,0.00028801,2]
[426089244,1782141050000,-948.9146312,0.00028803,2]
[426089245,1782141050000,-980.17596126,0.00028803,2]
[426089247,1782141050000,-1004.82635591,0.00028803,2]
[426089246,1782141050000,-887.53588723,0.00028803,2]
[426089248,1782141050000,-886.59095263,0.00028803,2]
[426089250,1782141050000,-823.42740477,0.00028803,2]
[426089238,1782141050000,-150.0,0.00028767,2]
[426089292,1782141051000,-500.0,0.00029,2]
[426089298,1782141051000,-500.0,0.00029,2]
[426089297,1782141051000,-500.0,0.00029,2]
[426089296,1782141051000,-500.0,0.00029,2]
[426089290,1782141051000,-500.0,0.00029,2]
[426089294,1782141051000,-500.0,0.00029,2]
[426089300,1782141051000,-800.0,0.00029,2]
[426089295,1782141051000,-500.0,0.00029,2]
[426089302,1782141051000,-300.0,0.00029,2]
[426089303,1782141051000,-253.08804985,0.00029,2]
[426089301,1782141051000,-800.0,0.00029,2]
[426089305,1782141051000,-187.64742488,0.00029,2]
[426089304,1782141051000,-320.38621777,0.00029,2]
[426089307,1782141051000,-800.0,0.00029,2]
[426089306,1782141051000,-231.31,0.00029,2]
[426089308,1782141051000,-5294.17227538,0.00029,2]
[426089312,1782141051000,-35368.97082787,0.00029,2]
[426089299,1782141051000,-270.7,0.00029,2]
[426089291,1782141051000,-500.0,0.00029,2]
[426089311,1782141051000,-9625.0,0.00029,2]
[426089289,1782141051000,-500.0,0.00029,2]
[426089271,1782141051000,-537.0,0.000289,2]
[426089272,1782141051000,-200.0,0.000289,2]
[426089274,1782141051000,-152.0,0.00028912,30]
[426089275,1782141051000,-373.0,0.00028912,30]
[426089276,1782141051000,-171.0,0.00028912,30]
[426089277,1782141051000,-154.0,0.00028912,30]
[426089278,1782141051000,-785.0,0.00028915,2]
[426089279,1782141051000,-1026.81,0.0002893,30]
[426089273,1782141051000,-155.0,0.00028912,30]
[426089280,1782141051000,-383.0,0.00028962,2]
[426089282,1782141051000,-216.0,0.00028962,2]
[426089284,1782141051000,-160.46,0.00028973,120]
[426089286,1782141051000,-800.0,0.00029,2]
[426089285,1782141051000,-5286.0,0.00028979,10]
[426089288,1782141051000,-500.0,0.00029,2]
[426089281,1782141051000,-934.0,0.00028962,2]
[426089287,1782141051000,-500.0,0.00029,2]
[426089293,1782141051000,-500.0,0.00029,2]
[426089309,1782141051000,-629.0,0.00029,7]
[426089283,1782141051000,-150.0,0.00028971,2]
[426089314,1782141051000,-38703.08216513,0.00029,2]
[426089335,1782141051000,-155.0,0.00029,4]
[426089338,1782141051000,-155.0,0.00029,4]
[426089336,1782141051000,-155.0,0.00029,4]
[426089343,1782141051000,-155.0,0.00029,4]
[426089346,1782141051000,-155.0,0.00029,4]
[426089345,1782141051000,-155.0,0.00029,4]
[426089340,1782141051000,-155.0,0.00029,4]
[426089353,1782141051000,-500.0,0.000291,2]
[426089333,1782141051000,-155.0,0.00029,4]
[426089350,1782141051000,-1026.81,0.0002906,30]
[426089348,1782141051000,-528.78557908,0.00029,2]
[426089344,1782141051000,-155.0,0.00029,4]
[426089349,1782141051000,-709.11,0.00029015,2]
[426089347,1782141051000,-155.0,0.00029,4]
[426089342,1782141051000,-155.0,0.00029,4]
[426089351,1782141051000,-500.0,0.000291,2]
[426089352,1782141051000,-500.0,0.000291,2]
[426089341,1782141051000,-155.0,0.00029,4]
[426089339,1782141051000,-155.0,0.00029,4]
[426089337,1782141051000,-155.0,0.00029,4]
[426089310,1782141051000,-586.0,0.00029,2]
[426089334,1782141051000,-155.0,0.00029,4]
[426089332,1782141051000,-155.0,0.00029,4]
[426089318,1782141051000,-153.0,0.00029,4]
[426089316,1782141051000,-156.0,0.00029,4]
[426089313,1782141051000,-13904.65848181,0.00029,2]
[426089317,1782141051000,-153.0,0.00029,4]
[426089320,1782141051000,-153.0,0.00029,4]
[426089319,1782141051000,-153.0,0.00029,4]
[426089323,1782141051000,-153.0,0.00029,4]
[426089322,1782141051000,-153.0,0.00029,4]
[426089315,1782141051000,-9559.99840078,0.00029,2]
[426089324,1782141051000,-153.0,0.00029,4]
[426089325,1782141051000,-153.0,0.00029,4]
[426089326,1782141051000,-153.0,0.00029,4]
[426089321,1782141051000,-153.0,0.00029,4]
[426089329,1782141051000,-153.0,0.00029,4]
[426089331,1782141051000,-158.0,0.00029,4]
[426089330,1782141051000,-153.0,0.00029,4]
[426089328,1782141051000,-153.0,0.00029,4]
[426089327,1782141051000,-153.0,0.00029,4]
[426089370,1782141052000,-800.0,0.000295,2]
[426089377,1782141052000,-200.0,0.00029521,7]
[426089371,1782141052000,-800.0,0.000295,2]
[426089373,1782141052000,-5554.1514494,0.000295,2]
[426089376,1782141052000,-200.0,0.00029521,7]
[426089379,1782141052000,-482.44,0.00029529,2]
[426089374,1782141052000,-573.69,0.00029506,2]
[426089372,1782141052000,-800.0,0.000295,2]
[426089378,1782141052000,-200.0,0.00029521,7]
[426089382,1782141052000,-999.84346013,0.00029567,2]
[426089369,1782141052000,-800.0,0.000295,2]
[426089375,1782141052000,-200.0,0.00029521,7]
[426089367,1782141052000,-159.25026222,0.00029456,2]
[426089359,1782141052000,-501.0,0.00029278,10]
[426089364,1782141052000,-709.11,0.00029389,2]
[426089365,1782141052000,-452.620133,0.00029432,7]
[426089366,1782141052000,-1026.81,0.0002945,30]
[426089363,1782141052000,-164.71,0.00029377,10]
[426089361,1782141052000,-588.53,0.00029377,10]
[426089362,1782141052000,-28318.98,0.00029377,10]
[426089360,1782141052000,-1026.81,0.0002932,30]
[426089358,1782141052000,-785.0,0.00029248,2]
[426089380,1782141052000,-220.66,0.00029529,2]
[426089357,1782141052000,-995.0,0.0002923,2]
[426089356,1782141052000,-1026.81,0.0002919,30]
[426089354,1782141052000,-500.01,0.000291,2]
[426089355,1782141052000,-203.72065036,0.0002913,7]
[426089368,1782141052000,-151.0,0.00029456,2]
[426089384,1782141052000,-1026.81,0.0002958,30]
[426089385,1782141052000,-785.0,0.0002958,2]
[426089381,1782141052000,-963.21385379,0.00029567,2]
[426089412,1782141052000,-198826.51668034,0.000298,2]
[426089411,1782141052000,-591808.19129915,0.000298,2]
[426089409,1782141052000,-709.11,0.00029762,2]
[426089408,1782141052000,-150.297311,0.00029731,28]
[426089405,1782141052000,-494.25522785,0.0002971,2]
[426089406,1782141052000,-1026.81,0.0002971,30]
[426089407,1782141052000,-493.0,0.00029718,2]
[426089383,1782141052000,-1042.16202224,0.00029567,2]
[426089404,1782141052000,-969.24,0.000297,7]
[426089401,1782141052000,-1105.9015901,0.00029654,2]
[426089396,1782141052000,-1065.04306468,0.00029654,2]
[426089397,1782141052000,-1205.79162709,0.00029654,2]
[426089400,1782141052000,-988.11288573,0.00029654,2]
[426089403,1782141052000,-1664.17,0.00029696,7]
[426089410,1782141052000,-991.30601562,0.00029795,2]
[426089402,1782141052000,-2057.61301346,0.00029684,10]
[426089395,1782141052000,-1176.21115351,0.00029654,2]
[426089398,1782141052000,-1063.90914316,0.00029654,2]
[426089391,1782141052000,-937.75283355,0.00029603,2]
[426089392,1782141052000,-9788.09302018,0.00029648,2]
[426089387,1782141052000,-882.35,0.00029589,2]
[426089394,1782141052000,-1138.69755744,0.00029654,2]
[426089390,1782141052000,-364.68,0.000296,7]
[426089388,1782141052000,-291.96,0.00029589,2]
[426089393,1782141052000,-1025.48433808,0.00029652,2]
[426089389,1782141052000,-294.99824527,0.00029589,2]
[426089386,1782141052000,-250.0,0.00029582,13]
[426089399,1782141052000,-1143.71507766,0.00029654,2]
[426089413,1782141053000,-324.72,0.00018986,2]
[426089414,1782141053000,-216.48,0.00023939,7]
[426089415,1782141053000,-1139.428651,0.00027397,2]
[426089418,1782141053000,-1331.7576687,0.000298,2]
[426089416,1782141053000,-1139.428651,0.000286,7]
[426089417,1782141053000,-602.74331966,0.000298,2]
[426089419,1782141054000,-1052.48040523,0.00018888,2]
[426089420,1782141054000,-521.69875572,0.00018888,2]
[426089421,1782141054000,-662.41083905,0.00018888,2]
[426089422,1782141054000,-44.97896255,0.00027397,2]
[426089428,1782141054000,-479.451249,0.00026444,2]
[426089425,1782141054000,-412.08957102,0.000227,3]
[426089427,1782141054000,-5529.0,0.000235,5]
[426089429,1782141054000,-1094.44968845,0.00027397,2]
[426089424,1782141054000,-1117.55,0.000227,3]
[426089423,1782141054000,-2752.43606227,0.000227,3]
[426089430,1782141054000,-1139.428651,0.00027397,2]
[426089426,1782141054000,-1246.92436671,0.000227,3]
[426089435,1782141054000,-749.18,0.00028198,7]
[426089438,1782141054000,-1139.428651,0.000286,7]
[426089436,1782141054000,-749.18,0.00028359,2]
[426089434,1782141054000,-749.18,0.00028038,30]
[426089432,1782141054000,-749.18,0.00027718,7]
[426089433,1782141054000,-749.18,0.00027878,2]
[426089437,1782141054000,-1139.428651,0.000286,7]
[426089431,1782141054000,-749.18,0.00027558,30]
[426089492,1782141055000,-289.56880172,0.00029808,2]
[426089461,1782141055000,-150.0,0.00029808,14]
[426089463,1782141055000,-150.0,0.00029808,14]
[426089464,1782141055000,-263.84252662,0.00029808,14]
[426089465,1782141055000,-422.0,0.00029808,2]
[426089468,1782141055000,-422.0,0.00029808,2]
[426089466,1782141055000,-422.0,0.00029808,2]
[426089467,1782141055000,-422.0,0.00029808,2]
[426089469,1782141055000,-422.0,0.00029808,2]
[426089471,1782141055000,-422.0,0.00029808,2]
[426089475,1782141055000,-422.0,0.00029808,2]
[426089470,1782141055000,-422.0,0.00029808,2]
[426089480,1782141055000,-422.0,0.00029808,2]
[426089472,1782141055000,-422.0,0.00029808,2]
[426089473,1782141055000,-422.0,0.00029808,2]
[426089476,1782141055000,-422.0,0.00029808,2]
[426089477,1782141055000,-422.0,0.00029808,2]
[426089478,1782141055000,-422.0,0.00029808,2]
[426089479,1782141055000,-422.0,0.00029808,2]
[426089474,1782141055000,-422.0,0.00029808,2]
[426089462,1782141055000,-150.0,0.00029808,14]
[426089458,1782141055000,-194.200645,0.00029808,7]
[426089459,1782141055000,-194.200645,0.00029808,7]
[426089443,1782141055000,-201.248029,0.000298,7]
[426089444,1782141055000,-201.248029,0.000298,7]
[426089439,1782141055000,-1813.6317036,0.000298,2]
[426089440,1782141055000,-8586.76334058,0.000298,10]
[426089441,1782141055000,-201.248029,0.000298,7]
[426089442,1782141055000,-201.248029,0.000298,7]
[426089445,1782141055000,-151.0,0.000298,7]
[426089450,1782141055000,-1668.304004,0.000298,7]
[426089457,1782141055000,-194.200645,0.00029808,7]
[426089456,1782141055000,-194.200645,0.00029808,7]
[426089448,1782141055000,-1668.304004,0.000298,7]
[426089454,1782141055000,-1139.428651,0.000298,7]
[426089447,1782141055000,-1668.304004,0.000298,7]
[426089449,1782141055000,-1668.304004,0.000298,7]
[426089453,1782141055000,-1139.428651,0.000298,7]
[426089451,1782141055000,-151.0,0.000298,7]
[426089446,1782141055000,-200.0,0.000298,10]
[426089452,1782141055000,-1139.428651,0.000298,7]
[426089455,1782141055000,-1139.428651,0.000298,7]
[426089460,1782141055000,-151.0,0.00029808,7]
[426089482,1782141055000,-422.0,0.00029808,2]
[426089483,1782141055000,-150.0,0.00029808,2]
[426089489,1782141055000,-422.0,0.00029808,2]
[426089481,1782141055000,-422.0,0.00029808,2]
[426089511,1782141055000,-494.58565803,0.00029808,14]
[426089509,1782141055000,-500.0,0.00029808,14]
[426089512,1782141055000,-1026.81,0.0002984,30]
[426089513,1782141055000,-493.0,0.00029856,2]
[426089523,1782141055000,-158.0,0.00029888,30]
[426089514,1782141055000,-291.96,0.00029863,2]
[426089516,1782141055000,-227.0,0.00029888,30]
[426089524,1782141055000,-200.0,0.00029894,2]
[426089515,1782141055000,-493.0,0.00029874,2]
[426089520,1782141055000,-1170.0,0.00029888,30]
[426089518,1782141055000,-159.0,0.00029888,30]
[426089521,1782141055000,-1288.0,0.00029888,30]
[426089517,1782141055000,-197.0,0.00029888,30]
[426089519,1782141055000,-2475.39,0.00029888,7]
[426089522,1782141055000,-159.93319847,0.00029888,30]
[426089525,1782141055000,-501.0,0.00029897,11]
[426089526,1782141055000,-34310.39833428,0.000299,2]
[426089527,1782141055000,-263.325,0.000299,2]
[426089510,1782141055000,-500.0,0.00029808,14]
[426089506,1782141055000,-500.0,0.00029808,14]
[426089508,1782141055000,-500.0,0.00029808,14]
[426089501,1782141055000,-500.0,0.00029808,14]
[426089487,1782141055000,-289.61188553,0.00029808,2]
[426089484,1782141055000,-422.0,0.00029808,2]
[426089485,1782141055000,-150.0,0.00029808,2]
[426089488,1782141055000,-422.0,0.00029808,2]
[426089491,1782141055000,-422.0,0.00029808,2]
[426089486,1782141055000,-150.0,0.00029808,2]
[426089507,1782141055000,-500.0,0.00029808,14]
[426089495,1782141055000,-250.0,0.00029808,2]
[426089494,1782141055000,-250.0,0.00029808,2]
[426089490,1782141055000,-422.0,0.00029808,2]
[426089498,1782141055000,-150.0,0.00029808,14]
[426089496,1782141055000,-250.0,0.00029808,2]
[426089503,1782141055000,-500.0,0.00029808,14]
[426089497,1782141055000,-268.70738278,0.00029808,2]
[426089502,1782141055000,-500.0,0.00029808,14]
[426089505,1782141055000,-500.0,0.00029808,14]
[426089504,1782141055000,-500.0,0.00029808,14]
[426089500,1782141055000,-500.0,0.00029808,14]
[426089499,1782141055000,-500.0,0.00029808,14]
[426089493,1782141055000,-150.0,0.00029808,2]
[426089530,1782141069000,-264.20248766,0.00020703,2]
[426089528,1782141069000,-151.0,0.00017148,2]
[426089529,1782141069000,-151.0,0.00017148,2]
[426089531,1782141115000,-151.0,0.0001251,2]
[426089532,1782141169000,-152.0,0.00013669,2]
[426089533,1782141222000,-151.0,0.00013669,2]
[426089534,1782141275000,-151.0,0.00013669,2]
[426089538,1782141328000,-150.0,0.00013669,2]
[426089542,1782141382000,-151.0,0.00013669,2]
[426089543,1782141575000,-160.0,0.00013669,2]
[426089544,1782141628000,-151.0,0.00013669,2]
[426089545,1782141682000,-151.0,0.00013668,2]
[426089546,1782141735000,-152.0,0.00013668,2]
[426089547,1782141789000,-181.38282369,0.00013667,2]
[426089548,1782141842000,-318.0,0.00013667,2]
[426089549,1782141896000,-151.0,0.00013667,2]
[426089550,1782141949000,-319.0,0.00013667,2]
[426089551,1782142003000,-319.0,0.00013667,2]
[426089552,1782142004000,-191.97356288,0.00013667,2]
[426089553,1782142056000,-126.02643712,0.00013667,2]
[426089554,1782142214000,-151.0,0.00013667,2]
[426089555,1782142230000,-316.0,0.00013667,2]
[426089562,1782142233000,-9.13,0.00013667,2]
[426089561,1782142233000,-315.0,0.00013667,2]
[426089588,1782142238000,-151.0,0.00013667,2]
[426089579,1782142238000,-317.0,0.00013667,2]
[426089586,1782142238000,-309.0,0.00013667,2]
[426089585,1782142238000,-190.16709723,0.00013667,2]
[426089584,1782142238000,-127.83290277,0.00013667,2]
[426089582,1782142238000,-314.0,0.00013667,2]
[426089583,1782142238000,-150.0,0.00013667,2]
[426089572,1782142238000,-141.87,0.00013667,2]
[426089580,1782142238000,-150.0,0.00013667,2]
[426089577,1782142238000,-286.61577818,0.00013667,2]
[426089578,1782142238000,-317.0,0.00013667,2]
[426089575,1782142238000,-152.0,0.00013667,2]
[426089576,1782142238000,-22.38422182,0.00013667,2]
[426089574,1782142238000,-320.0,0.00013667,2]
[426089591,1782142238000,-313.0,0.00013667,2]
[426089581,1782142238000,-318.0,0.00013667,2]
[426089587,1782142238000,-319.0,0.00013667,2]
[426089573,1782142238000,-313.0,0.00013667,2]
[426089590,1782142238000,-307.03709723,0.00013667,2]
[426089589,1782142238000,-5.96290277,0.00013667,2]
[426089607,1782142238000,-152.0,0.00013667,2]
[426089605,1782142238000,-315.0,0.00013667,2]
[426089604,1782142238000,-152.0,0.00013667,2]
[426089606,1782142238000,-318.0,0.00013667,2]
[426089603,1782142238000,-311.0,0.00013667,2]
[426089598,1782142238000,-318.0,0.00013667,2]
[426089602,1782142238000,-271.76929476,0.00013667,2]
[426089601,1782142238000,-47.23070524,0.00013667,2]
[426089600,1782142238000,-312.0,0.00013667,2]
[426089599,1782142238000,-152.0,0.00013667,2]
[426089594,1782142238000,-317.0,0.00013667,2]
[426089597,1782142238000,-316.0,0.00013667,2]
[426089595,1782142238000,-321.0,0.00013667,2]
[426089593,1782142238000,-151.0,0.00013667,2]
[426089592,1782142238000,-315.0,0.00013667,2]
[426089596,1782142238000,-151.0,0.00013667,2]
[426089612,1782142239000,-151.0,0.00013667,2]
[426089608,1782142239000,-309.0,0.00013667,2]
[426089609,1782142239000,-317.0,0.00013667,2]
[426089610,1782142239000,-314.0,0.00013667,2]
[426089611,1782142239000,-151.0,0.00013667,2]
[426089628,1782142239000,-280.39859746,0.00013667,2]
[426089614,1782142239000,-150.0,0.00013667,2]
[426089618,1782142239000,-320.0,0.00013667,2]
[426089622,1782142239000,-103.23859746,0.00013667,2]
[426089620,1782142239000,-317.0,0.00013667,2]
[426089627,1782142239000,-48.76140254,0.00013667,2]
[426089616,1782142239000,-150.0,0.00013667,2]
[426089644,1782142240000,-296.52041524,0.00013667,2]
[426089636,1782142240000,-35.60140254,0.00013667,2]
[426089637,1782142240000,-319.0,0.00013667,2]
[426089638,1782142240000,-150.0,0.00013667,2]
[426089640,1782142240000,-312.0,0.00013667,2]
[426089639,1782142240000,-309.0,0.00013667,2]
[426089642,1782142240000,-313.0,0.00013667,2]
[426089643,1782142240000,-321.0,0.00013667,2]
[426089641,1782142240000,-150.0,0.00013667,2]
[426089651,1782142240000,-313.0,0.00013667,2]
[426089645,1782142240000,-21.47958476,0.00013667,2]
[426089647,1782142240000,-321.0,0.00013667,2]
[426089649,1782142240000,-151.0,0.00013667,2]
[426089650,1782142240000,-317.0,0.00013667,2]
[426089648,1782142240000,-312.0,0.00013667,2]
[426089653,1782142240000,-152.0,0.00013667,2]
[426089652,1782142240000,-319.0,0.00013667,2]
[426089654,1782142240000,-315.0,0.00013667,2]